bitfinex/quotes_BTCUSD_20250902
["timestamp","ask_amount","ask_price","bid_price","bid_amount"]
[1756803985550,4.703e-05,110640.0,110630.0,0.98045691]
[1756803986245,0.35377577,110640.0,110630.0,0.98045691]
[1756803986479,4.703e-05,110640.0,110630.0,0.98045691]
[1756803986835,0.35377577,110640.0,110630.0,0.98045691]
[1756803987041,4.703e-05,110640.0,110630.0,0.98045691]
[1756803989014,4.703e-05,110640.0,110630.0,1.94142565]
[1756803989228,0.0002,110650.0,110640.0,0.623554]
[1756803989229,1e-08,110650.0,110640.0,0.623554]
[1756803989457,1e-08,110650.0,110640.0,0.71546999]
[1756803989659,1e-08,110650.0,110640.0,0.74643999]
[1756803989868,1e-08,110650.0,110640.0,1.14643999]
[1756803990076,1e-08,110650.0,110640.0,1.17360174]
[1756803990616,1e-08,110650.0,110640.0,1.17860174]
[1756803990819,1e-08,110650.0,110640.0,1.18660174]
[1756803991379,1e-08,110650.0,110640.0,0.984993]
[1756803991598,1e-08,110650.0,110640.0,1.33872174]
[1756803991808,1e-08,110650.0,110640.0,0.984993]
[1756803992046,1e-08,110650.0,110640.0,1.33872174]
[1756803992606,1e-08,110650.0,110640.0,0.984993]
[1756803992791,1e-08,110650.0,110640.0,1.33872174]
[1756803994207,1e-08,110650.0,110640.0,1.69245048]
[1756803995812,1e-08,110650.0,110640.0,0.984993]
[1756803996019,1e-08,110650.0,110640.0,1.95575048]
[1756803996626,1e-08,110650.0,110640.0,2.39575048]
[1756803999538,0.0002,110680.0,110660.0,0.05]
[1756803999748,0.00024704,110680.0,110670.0,1.61480869]
[1756803999926,0.00024704,110680.0,110670.0,1.26393099]
[1756804000364,0.00024704,110680.0,110670.0,1.66755181]
[1756804000573,0.00024704,110680.0,110670.0,1.72998744]
[1756804000792,0.00024704,110680.0,110670.0,1.3762587]
[1756804000996,0.00024704,110680.0,110670.0,1.72998744]
[1756804001203,0.00024704,110680.0,110670.0,1.73198744]
[1756804002020,0.00024704,110680.0,110670.0,1.57994744]
[1756804002223,0.00221704,110680.0,110670.0,1.72687744]
[1756804002427,0.00024704,110680.0,110670.0,1.73198744]
[1756804003016,0.00221704,110680.0,110670.0,1.73298744]
[1756804003218,0.00024704,110680.0,110670.0,1.73298744]
[1756804003770,0.00024704,110680.0,110670.0,1.1772187]
[1756804003983,0.00024704,110680.0,110670.0,1.73298744]
[1756804006550,0.00024704,110680.0,110670.0,1.71040754]
[1756804008096,0.00024704,110680.0,110670.0,2.06413628]
[1756804009349,0.0002,110700.0,110690.0,0.92441353]
[1756804009549,0.00024702,110700.0,110690.0,1.16832952]
[1756804009834,0.00024702,110700.0,110690.0,1.17343952]
[1756804010043,0.00024702,110700.0,110690.0,1.17705965]
[1756804010184,1e-08,110700.0,110690.0,1.57705965]
[1756804011010,1e-08,110700.0,110690.0,1.58205965]
[1756804011588,1e-08,110700.0,110690.0,1.58505965]
[1756804012525,1e-08,110700.0,110690.0,1.23133091]
[1756804012730,1e-08,110700.0,110690.0,1.58505965]
[1756804013557,1e-08,110700.0,110690.0,1.93722123]
[1756804015814,1e-08,110700.0,110690.0,1.60239607]
[1756804016016,0.00197001,110700.0,110690.0,1.24430091]
[1756804016217,0.00479001,110700.0,110690.0,1.24430091]
[1756804016446,0.35773517,110700.0,110690.0,1.22618091]
[1756804016760,0.71068033,110700.0,110690.0,0.28060078]
[1756804016975,0.71068033,110700.0,110690.0,0.43256078]
[1756804017446,0.71068033,110700.0,110690.0,0.42456078]
[1756804017658,0.71068033,110700.0,110690.0,0.42756078]
[1756804017857,0.71068033,110700.0,110690.0,0.42956078]
[1756804018099,0.71068033,110700.0,110690.0,0.42656078]
[1756804018861,0.35773517,110700.0,110690.0,0.42656078]
[1756804019512,0.35773517,110700.0,110690.0,0.42456078]
[1756804021224,0.35773517,110700.0,110690.0,0.42556078]
[1756804021637,0.35773517,110700.0,110690.0,0.42656078]
[1756804022459,0.00197001,110700.0,110690.0,0.42656078]
[1756804022875,0.35773517,110700.0,110690.0,0.42656078]
[1756804023298,0.00479001,110700.0,110690.0,0.42656078]
[1756804023516,0.35773517,110700.0,110690.0,0.42656078]
[1756804025259,0.71068033,110700.0,110690.0,0.27460078]
[1756804025526,0.71068033,110700.0,110690.0,0.42656078]
[1756804026457,0.00479001,110700.0,110690.0,0.42656078]
[1756804026640,0.71068033,110700.0,110690.0,0.42656078]
[1756804030914,0.71068033,110700.0,110690.0,0.27460078]
[1756804031135,0.71068033,110700.0,110690.0,0.42656078]
[1756804033021,0.8913488,110700.0,110690.0,0.09391599]
[1756804033249,0.8913488,110700.0,110690.0,0.24587599]
[1756804034943,0.8913488,110700.0,110690.0,0.09391599]
[1756804035149,0.8913488,110700.0,110690.0,0.24587599]
[1756804035150,1.24429396,110700.0,110690.0,0.24587599]
[1756804035358,1.58429396,110700.0,110690.0,0.15396]
[1756804036028,1.73625396,110700.0,110690.0,0.15396]
[1756804036243,1.73625396,110700.0,110690.0,0.001]
[1756804036684,0.18070112,110680.0,110670.0,0.06948]
[1756804036908,0.89138144,110680.0,110670.0,0.31335599]
[1756804037131,1.2443266,110680.0,110670.0,0.31335599]
[1756804037574,1.2443266,110680.0,110670.0,0.15196]
[1756804038138,0.89138144,110680.0,110670.0,0.15196]
[1756804040131,0.91049386,110680.0,110670.0,0.15196]
[1756804040669,0.180729,110670.0,110650.0,0.47954654]
[1756804040896,0.183509,110670.0,110660.0,0.24387599]
[1756804041089,0.185519,110670.0,110660.0,0.24387599]
[1756804041471,0.185519,110670.0,110660.0,0.09191599]
[1756804041682,0.185519,110670.0,110660.0,0.24387599]
[1756804041888,0.89140932,110670.0,110660.0,0.24387599]
[1756804042323,0.88862932,110670.0,110660.0,0.24387599]
[1756804043416,0.88862932,110670.0,110660.0,0.42460976]
[1756804043791,0.35294516,110670.0,110660.0,0.42990976]
[1756804045290,0.5356426,110670.0,110660.0,0.42990976]
[1756804045650,0.35294516,110670.0,110660.0,0.42990976]
[1756804045860,0.5336626,110670.0,110660.0,0.42990976]
[1756804046424,0.35294516,110670.0,110660.0,0.42990976]
[1756804046750,0.5336626,110670.0,110660.0,0.42990976]
[1756804047766,0.35294516,110670.0,110660.0,0.42990976]
[1756804047976,0.5336626,110670.0,110660.0,0.42990976]
[1756804051664,0.5356426,110670.0,110660.0,0.24387599]
[1756804051880,0.5356426,110670.0,110660.0,0.09191599]
[1756804052094,0.89139776,110670.0,110660.0,0.24387599]
[1756804053373,0.89239776,110670.0,110660.0,0.24387599]
[1756804053818,0.89339776,110670.0,110660.0,0.24387599]
[1756804054305,0.88958776,110670.0,110660.0,0.24387599]
[1756804054645,0.5366426,110670.0,110660.0,0.24387599]
[1756804054849,0.5376426,110670.0,110660.0,0.24387599]
[1756804055585,0.5356626,110670.0,110660.0,0.42990976]
[1756804056609,0.18271744,110670.0,110660.0,0.42990976]
[1756804056817,0.5356626,110670.0,110660.0,0.42990976]
[1756804059980,0.5346626,110670.0,110660.0,0.42990976]
[1756804060185,0.5336626,110670.0,110660.0,0.42990976]
[1756804064314,0.20884859,110680.0,110670.0,0.18071744]
[1756804064535,0.01911242,110680.0,110670.0,0.27764343]
[1756804064969,0.18068976,110690.0,110680.0,0.18070112]
[1756804065182,0.52068976,110690.0,110680.0,0.42662711]
[1756804065413,0.52068976,110690.0,110680.0,0.42958711]
[1756804065656,0.34,110690.0,110680.0,0.42958711]
[1756804065871,0.54264706,110700.0,110690.0,0.18068479]
[1756804066096,0.1916819,110700.0,110690.0,0.18569479]
[1756804066285,0.89757222,110700.0,110690.0,0.18569479]
[1756804066498,1.23757222,110700.0,110690.0,0.18569479]
[1756804066711,1.25735088,110700.0,110690.0,0.00501]
[1756804066943,1.25735088,110700.0,110680.0,0.42753711]
[1756804067168,0.35294516,110690.0,110680.0,0.40571571]
[1756804067575,0.35294516,110690.0,110680.0,0.40776571]
[1756804068761,0.35394516,110690.0,110680.0,0.40776571]
[1756804069162,0.35494516,110690.0,110680.0,0.40776571]
[1756804071499,0.53562995,110690.0,110680.0,0.40776571]
[1756804071710,0.35692516,110690.0,110680.0,0.40776571]
[1756804071941,0.35494516,110690.0,110680.0,0.40776571]
[1756804072151,0.53562995,110690.0,110680.0,0.40776571]
[1756804072356,0.53761995,110690.0,110680.0,0.40776571]
[1756804073010,0.53761995,110690.0,110680.0,0.27261711]
[1756804073225,0.53761995,110690.0,110680.0,0.42453711]
[1756804074123,0.53761995,110690.0,110680.0,0.42749711]
[1756804074543,0.35494516,110690.0,110680.0,0.42954711]
[1756804075722,0.35522802,110690.0,110680.0,0.42954711]
[1756804076191,0.002,110690.0,110680.0,0.45048593]
[1756804076449,0.001,110690.0,110680.0,0.89872395]
[1756804076629,0.001,110690.0,110680.0,1.29872395]
[1756804076822,1e-08,110700.0,110690.0,0.20162361]
[1756804077059,0.35322802,110710.0,110700.0,0.18066847]
[1756804077270,0.35322802,110710.0,110700.0,0.42651446]
[1756804077459,0.35322802,110710.0,110700.0,0.42947446]
[1756804078077,0.18986872,110720.0,110710.0,0.18065215]
[1756804078296,0.54309674,110720.0,110710.0,0.27256814]
[1756804078494,0.54507674,110720.0,110710.0,0.27256814]
[1756804078690,0.54507674,110720.0,110710.0,0.26956814]
[1756804079167,0.35540802,110720.0,110710.0,0.27161814]
[1756804079463,0.0002,110720.0,110710.0,0.27457814]
[1756804079638,0.35342802,110720.0,110710.0,0.27457814]
[1756804079852,0.0002,110720.0,110710.0,0.34405814]
[1756804080076,0.0012,110720.0,110710.0,0.34405814]
[1756804080516,0.0022,110720.0,110710.0,0.36499696]
[1756804080780,0.0002,110720.0,110710.0,0.36499696]
[1756804080973,0.0002,110720.0,110710.0,0.39052696]
[1756804081319,0.0002,110720.0,110710.0,0.39152696]
[1756804082166,0.0002,110720.0,110710.0,0.39252696]
[1756804082997,0.0002,110720.0,110710.0,0.54440696]
[1756804083208,0.35550802,110720.0,110710.0,0.51386696]
[1756804083610,0.35550802,110720.0,110710.0,0.51887696]
[1756804083829,0.0002,110720.0,110710.0,0.51887696]
[1756804084072,0.0002,110720.0,110710.0,0.51787696]
[1756804084606,0.0002,110720.0,110710.0,0.52087696]
[1756804085631,0.0002,110720.0,110710.0,0.51987696]
[1756804089137,0.35342802,110720.0,110710.0,0.49889814]
[1756804089672,0.53615385,110720.0,110710.0,0.34705814]
[1756804089892,0.35551802,110720.0,110710.0,0.49889814]
[1756804090108,0.35551802,110720.0,110710.0,0.34705814]
[1756804090244,0.53615385,110720.0,110710.0,0.49889814]
[1756804090623,0.35551802,110720.0,110710.0,0.49889814]
[1756804093924,0.0002,110720.0,110710.0,0.89876498]
[1756804094167,0.0002,110720.0,110710.0,1.28876498]
[1756804094389,0.0002,110720.0,110710.0,1.69238448]
[1756804094830,0.0002,110720.0,110710.0,1.68938448]
[1756804095282,0.0002,110720.0,110710.0,1.69238448]
[1756804096399,0.0002,110720.0,110710.0,1.69338448]
[1756804096747,0.0002,110720.0,110710.0,1.69238448]
[1756804096958,0.0002,110720.0,110710.0,1.68938448]
[1756804097357,0.0002,110720.0,110710.0,1.69838448]
[1756804097744,0.0002,110730.0,110720.0,0.92386385]
[1756804097924,0.0002,110730.0,110720.0,1.01577984]
[1756804098068,0.0002,110730.0,110720.0,1.04659984]
[1756804098299,0.0002,110730.0,110720.0,1.44659984]
[1756804098475,0.0002,110730.0,110720.0,1.45021893]
[1756804098724,0.0002,110730.0,110720.0,1.60201893]
[1756804099510,0.0002,110730.0,110720.0,1.60401893]
[1756804099919,0.0002,110730.0,110720.0,1.86731893]
[1756804100561,0.0002,110730.0,110720.0,1.87231893]
[1756804101245,0.0002,110730.0,110720.0,1.98318577]
[1756804101449,0.0002,110730.0,110720.0,1.62995775]
[1756804101624,1e-08,110730.0,110720.0,1.62995775]
[1756804102461,1e-08,110730.0,110720.0,1.67144269]
[1756804102907,1e-08,110730.0,110720.0,1.76677269]
[1756804103138,1e-08,110730.0,110720.0,1.67144269]
[1756804105233,1e-08,110730.0,110720.0,2.07467071]
[1756804105543,1e-08,110730.0,110720.0,2.33797071]
[1756804106161,1e-08,110740.0,110730.0,0.25155834]
[1756804106372,0.0001411,110740.0,110730.0,1.20169037]
[1756804106591,0.0001411,110740.0,110730.0,1.23251037]
[1756804106873,1e-08,110740.0,110730.0,1.68251037]
[1756804107117,1e-08,110740.0,110730.0,1.68612871]
[1756804107744,1e-08,110740.0,110730.0,1.53836871]
[1756804107948,1e-08,110740.0,110730.0,1.69012871]
[1756804108157,1e-08,110740.0,110730.0,1.18514069]
[1756804108387,1e-08,110740.0,110730.0,1.33690069]
[1756804108594,1e-08,110740.0,110730.0,1.69012871]
[1756804108795,1e-08,110740.0,110730.0,1.69212871]
[1756804109763,1e-08,110740.0,110730.0,1.28890069]
[1756804110326,1e-08,110740.0,110730.0,1.64212871]
[1756804111500,1e-08,110740.0,110730.0,1.90542871]
[1756804117033,1e-08,110740.0,110730.0,1.97486871]
[1756804122298,1e-08,110740.0,110730.0,2.03921356]
[1756804122713,1e-08,110740.0,110730.0,1.82310871]
[1756804122920,1e-08,110740.0,110730.0,1.24263267]
[1756804123100,1e-08,110740.0,110730.0,1.94908871]
[1756804123311,1e-08,110740.0,110730.0,2.01343356]
[1756804123915,0.00198001,110740.0,110730.0,1.66020554]
[1756804124275,1e-08,110740.0,110730.0,1.66020554]
[1756804124942,1e-08,110740.0,110730.0,2.01343356]
[1756804126070,1e-08,110740.0,110730.0,2.23043356]
[1756804127354,1e-08,110740.0,110730.0,1.31717752]
[1756804127355,0.00198001,110740.0,110730.0,1.31717752]
[1756804127568,0.00479001,110740.0,110730.0,1.12027385]
[1756804127967,0.00479001,110740.0,110730.0,0.96859385]
[1756804128169,0.00479001,110740.0,110730.0,0.72027385]
[1756804128475,0.00479001,110740.0,110730.0,0.71665551]
[1756804128804,0.00479001,110740.0,110730.0,0.56497551]
[1756804129007,0.00479001,110740.0,110730.0,0.71665551]
[1756804130713,0.35801803,110740.0,110730.0,0.56497551]
[1756804131010,0.35801803,110740.0,110730.0,0.71665551]
[1756804131419,0.00479001,110740.0,110730.0,0.71665551]
[1756804132066,0.35801803,110740.0,110730.0,0.71665551]
[1756804132319,0.00479001,110740.0,110730.0,0.71665551]
[1756804135199,0.35801803,110740.0,110730.0,0.71665551]
[1756804135613,0.3576784,110740.0,110730.0,0.71665551]
[1756804138910,0.71056679,110740.0,110730.0,0.16735599]
[1756804139136,0.89117,110740.0,110730.0,0.49965551]
[1756804140015,0.89117,110740.0,110730.0,0.34797551]
[1756804140215,0.89117,110740.0,110730.0,0.49965551]
[1756804140671,0.89117,110740.0,110730.0,0.31503599]
[1756804140936,0.89117,110740.0,110730.0,0.002]
[1756804140937,1.23117,110740.0,110730.0,0.002]
[1756804141189,0.18062749,110730.0,110720.0,0.18063465]
[1756804141428,0.53550588,110730.0,110720.0,0.42423064]
[1756804141683,0.53830588,110730.0,110720.0,0.42423064]
[1756804142181,0.53830588,110730.0,110720.0,0.24359599]
[1756804142723,0.53830588,110730.0,110720.0,0.24459599]
[1756804143237,0.53830588,110730.0,110720.0,0.42523182]
[1756804143456,0.00199,110730.0,110720.0,0.42523182]
[1756804143700,0.35487839,110730.0,110720.0,0.43039182]
[1756804143946,0.35487839,110730.0,110720.0,0.42523182]
[1756804144166,0.35487839,110730.0,110720.0,0.42723182]
[1756804144378,0.55259765,110730.0,110720.0,0.42723182]
[1756804144977,0.37197813,110730.0,110720.0,0.42723182]
[1756804145174,0.55258765,110730.0,110720.0,0.42723182]
[1756804147137,0.01709974,110730.0,110720.0,0.43239182]
[1756804147396,0.52060322,110740.0,110730.0,0.18061952]
[1756804147397,0.3528884,110740.0,110730.0,0.18061952]
[1756804147654,0.3528884,110740.0,110730.0,0.27479325]
[1756804147905,0.3528884,110740.0,110730.0,0.27769551]
[1756804149079,0.53547161,110740.0,110730.0,0.27869551]
[1756804149254,0.55271091,110740.0,110730.0,0.27869551]
[1756804149482,0.55271091,110740.0,110730.0,0.27353551]
[1756804149855,0.55271091,110740.0,110730.0,0.27850551]
[1756804151366,0.55271091,110740.0,110730.0,0.09291599]
[1756804151367,0.9084093,110740.0,110730.0,0.09291599]
[1756804151571,0.9084093,110740.0,110730.0,0.24459599]
[1756804152189,0.9084093,110740.0,110730.0,0.15268]
[1756804152568,0.9084093,110740.0,110730.0,0.001]
[1756804152996,1.26129769,110740.0,110730.0,0.15268]
[1756804153205,0.9084093,110740.0,110730.0,0.15268]
[1756804153545,1.26129769,110740.0,110730.0,0.15268]
[1756804153964,0.9084093,110740.0,110730.0,0.15268]
[1756804155511,1.60129769,110740.0,110730.0,0.001]
[1756804155719,1.60129769,110740.0,110730.0,0.15268]
[1756804157185,1.60129769,110740.0,110730.0,0.15168]
[1756804157393,0.18063583,110720.0,110710.0,0.26210077]
[1756804157624,0.88641261,110720.0,110710.0,0.35600676]
[1756804157827,0.88641261,110720.0,110710.0,0.50768676]
[1756804158240,0.88840261,110720.0,110710.0,0.50768676]
[1756804159080,0.88840261,110720.0,110710.0,0.35700676]
[1756804159281,0.88840261,110720.0,110710.0,0.50868676]
[1756804160523,0.88840261,110720.0,110710.0,0.51068676]
[1756804161145,0.88840261,110720.0,110710.0,0.35403676]
[1756804161373,0.88840261,110720.0,110710.0,0.16733599]
[1756804161647,0.89120261,110720.0,110710.0,0.24655599]
[1756804162986,0.89120261,110720.0,110710.0,0.15464]
[1756804168009,0.88641261,110720.0,110710.0,0.33728215]
[1756804168215,0.18063433,110730.0,110710.0,0.33728215]
[1756804168216,0.87350791,110730.0,110720.0,0.18063583]
[1756804168497,0.35288839,110730.0,110720.0,0.27752182]
[1756804169140,0.53350791,110730.0,110720.0,0.27752182]
[1756804170595,0.18061952,110730.0,110720.0,0.27752182]
[1756804170807,0.53350791,110730.0,110720.0,0.27852182]
[1756804174410,0.54687268,110740.0,110730.0,0.18061952]
[1756804174625,0.9036193,110740.0,110730.0,0.33722952]
[1756804174843,0.55073091,110740.0,110730.0,0.42914551]
[1756804175281,0.9036193,110740.0,110730.0,0.42914551]
[1756804177208,0.9046193,110740.0,110730.0,0.42914551]
[1756804177875,0.01823931,110740.0,110730.0,0.42914551]
[1756804178086,0.9046193,110740.0,110730.0,0.42914551]
[1756804180539,0.72401609,110740.0,110730.0,0.42914551]
[1756804181235,0.3711277,110740.0,110730.0,0.42914551]
[1756804186856,0.72401609,110740.0,110730.0,0.42910551]
[1756804187025,0.9046193,110740.0,110730.0,0.42910551]
[1756804187225,0.9065693,110740.0,110730.0,0.24351599]
[1756804187452,0.9093893,110740.0,110730.0,0.24351599]
[1756804187809,0.18061952,110730.0,110720.0,0.06944]
[1756804188009,0.8911663,110730.0,110720.0,0.31295599]
[1756804189451,0.8911663,110730.0,110720.0,0.09191599]
[1756804189651,0.8911663,110730.0,110720.0,0.24451599]
[1756804190055,0.8911663,110730.0,110720.0,0.001]
[1756804190236,0.8911663,110730.0,110720.0,0.1526]
[1756804190237,1.2311663,110730.0,110720.0,0.1526]
[1756804190441,1.2311663,110730.0,110720.0,0.001]
[1756804190645,1.2311663,110730.0,110720.0,0.00010146]
[1756804192378,1.2311663,110730.0,110710.0,0.1516]
[1756804192379,0.13063583,110720.0,110710.0,0.1516]
[1756804192584,0.83836261,110720.0,110710.0,0.24351599]
[1756804192782,0.84118261,110720.0,110710.0,0.24351599]
[1756804193006,0.18065215,110710.0,110700.0,0.14298631]
[1756804193225,0.18066847,110700.0,110680.0,0.33272248]
[1756804193436,0.53355686,110700.0,110690.0,0.24864599]
[1756804193645,0.53550686,110700.0,110690.0,0.24351599]
[1756804194348,0.18261847,110700.0,110690.0,0.42933078]
[1756804194572,0.18261847,110700.0,110690.0,0.42947186]
[1756804194573,0.88644525,110700.0,110690.0,0.42947186]
[1756804195962,0.90237563,110700.0,110690.0,0.43047186]
[1756804196577,0.35288839,110710.0,110700.0,0.18066847]
[1756804196783,0.35288839,110710.0,110700.0,0.27562446]
[1756804197002,0.35288839,110710.0,110700.0,0.27771446]
[1756804197419,0.35288839,110720.0,110710.0,0.18065215]
[1756804197623,0.53370298,110720.0,110710.0,0.33738215]
[1756804198296,0.54928469,110720.0,110710.0,0.33738215]
[1756804199679,0.55323469,110720.0,110710.0,0.33738215]
[1756804200090,0.55523469,110720.0,110710.0,0.33738215]
[1756804201518,0.55523469,110720.0,110710.0,0.33434215]
[1756804202091,0.55523469,110720.0,110710.0,0.33225215]
[1756804202662,0.20216754,110720.0,110710.0,0.33738215]
[1756804202801,0.55523469,110720.0,110710.0,0.33738215]
[1756804203010,0.55523469,110720.0,110710.0,0.33225215]
[1756804203986,0.55523469,110720.0,110710.0,0.1516]
[1756804207974,0.20216754,110720.0,110710.0,0.1516]
[1756804208242,0.55328469,110720.0,110710.0,0.33738215]
[1756804208685,0.01958171,110720.0,110710.0,0.42929814]
[1756804208904,0.37264886,110720.0,110710.0,0.42929814]
[1756804209565,0.36864886,110720.0,110710.0,0.42929814]
[1756804210239,0.37064886,110720.0,110710.0,0.42929814]
[1756804210902,0.55128469,110720.0,110710.0,0.42929814]
[1756804212091,0.37064886,110720.0,110710.0,0.42929814]
[1756804212270,0.55128469,110720.0,110710.0,0.42929814]
[1756804213176,0.37064886,110720.0,110710.0,0.42929814]
[1756804213412,0.55128469,110720.0,110710.0,0.42929814]
[1756804214754,0.37064886,110720.0,110710.0,0.42929814]
[1756804215895,0.01758171,110720.0,110710.0,0.42929814]
[1756804216525,0.37064886,110720.0,110710.0,0.42929814]
[1756804217914,0.002,110720.0,110710.0,0.42929814]
[1756804218884,0.002,110720.0,110710.0,0.45188814]
[1756804223752,0.002,110720.0,110710.0,0.30028814]
[1756804223960,0.00398,110720.0,110710.0,0.42921814]
[1756804224181,0.18461583,110720.0,110710.0,0.27256814]
[1756804224383,0.18461583,110720.0,110710.0,0.42408814]
[1756804224384,0.54049298,110720.0,110710.0,0.42408814]
[1756804224590,0.54049298,110720.0,110710.0,0.15152]
[1756804225962,0.54049298,110720.0,110710.0,0.33217215]
[1756804225963,0.53768298,110720.0,110710.0,0.33217215]
[1756804226422,0.54049298,110720.0,110710.0,0.33217215]
[1756804227250,0.53768298,110720.0,110710.0,0.15152]
[1756804227455,0.18065215,110710.0,110700.0,0.07243]
[1756804227604,0.5337193,110710.0,110700.0,0.16139599]
[1756804227807,0.5357093,110710.0,110700.0,0.49358446]
[1756804228207,0.5357093,110710.0,110700.0,0.31291599]
[1756804228898,0.5357093,110710.0,110700.0,0.06948]
[1756804229093,0.18066847,110700.0,110690.0,0.00014108]
[1756804229307,0.53373562,110700.0,110690.0,0.15166108]
[1756804229468,0.53573562,110700.0,110690.0,0.15166108]
[1756804229885,0.53573562,110700.0,110690.0,0.33432587]
[1756804230060,0.18066847,110700.0,110690.0,0.33727587]
[1756804230463,0.18264847,110700.0,110690.0,0.33727587]
[1756804230867,0.18364847,110700.0,110690.0,0.33727587]
[1756804233958,0.18364847,110700.0,110690.0,0.15659108]
[1756804234255,0.18364847,110700.0,110690.0,0.33727587]
[1756804234866,0.001,110700.0,110690.0,0.42919186]
[1756804236043,0.001,110700.0,110690.0,0.78225901]
[1756804236448,0.001,110700.0,110690.0,0.42919186]
[1756804236952,0.18166847,110700.0,110690.0,0.42919186]
[1756804237974,0.001,110700.0,110690.0,0.42919186]
[1756804238966,0.18166847,110700.0,110690.0,0.42919186]
[1756804239642,0.001,110700.0,110690.0,0.42919186]
[1756804248564,0.001,110700.0,110690.0,0.78225901]
[1756804248791,0.001,110700.0,110690.0,0.80632901]
[1756804248998,0.001,110700.0,110690.0,0.82726783]
[1756804249385,0.2036685,110730.0,110720.0,0.18063583]
[1756804249593,0.2056185,110730.0,110720.0,0.33742583]
[1756804251939,0.2086185,110730.0,110720.0,0.33742583]
[1756804252285,0.19963753,110730.0,110720.0,0.33742583]
[1756804252720,0.19763753,110730.0,110720.0,0.33742583]
[1756804252916,0.19463753,110730.0,110720.0,0.33742583]
[1756804253539,0.19958753,110730.0,110720.0,0.33742583]
[1756804253945,0.19763734,110730.0,110720.0,0.33742583]
[1756804254160,0.01701782,110730.0,110720.0,0.42934182]
[1756804256448,0.003,110730.0,110720.0,0.42934182]
[1756804257377,0.001,110730.0,110720.0,0.42934182]
[1756804257582,0.001,110730.0,110720.0,0.78225453]
[1756804257789,0.003,110730.0,110720.0,0.78225453]
[1756804257983,0.001,110730.0,110720.0,0.78225453]
[1756804258193,0.53548223,110730.0,110720.0,0.42403182]
[1756804258590,0.35586271,110730.0,110720.0,0.42930182]
[1756804258790,0.3682169,110730.0,110720.0,0.42930182]
[1756804259188,0.3682169,110730.0,110720.0,0.27782182]
[1756804259371,0.3682169,110730.0,110720.0,0.42930182]
[1756804259569,0.3672169,110730.0,110720.0,0.42930182]
[1756804259866,0.57115119,110750.0,110740.0,0.18060321]
[1756804260121,0.89886381,110750.0,110740.0,0.33208321]
[1756804260347,0.89886381,110750.0,110740.0,0.18060321]
[1756804260565,0.89886381,110750.0,110740.0,0.33208321]
[1756804260778,0.55886381,110750.0,110740.0,0.33735321]
[1756804260959,0.55886381,110750.0,110740.0,0.15675]
[1756804261222,0.55933402,110750.0,110740.0,0.15148]
[1756804261637,0.57693292,110750.0,110740.0,0.15148]
[1756804262058,0.57693292,110750.0,110740.0,0.33208321]
[1756804262266,0.22402021,110750.0,110740.0,0.33735321]
[1756804262489,0.03240748,110750.0,110740.0,0.33735321]
[1756804262689,0.03440748,110750.0,110740.0,0.33735321]
[1756804262850,0.21499438,110750.0,110740.0,0.33735321]
[1756804263043,0.03440748,110750.0,110740.0,0.33735321]
[1756804263288,0.21299438,110750.0,110740.0,0.18587321]
[1756804263487,0.56785709,110750.0,110740.0,0.33204321]
[1756804263750,0.56485709,110750.0,110740.0,0.33204321]
[1756804263956,0.56485709,110750.0,110740.0,0.34204321]
[1756804264340,0.56685709,110750.0,110740.0,0.34204321]
[1756804264518,0.56685709,110750.0,110740.0,0.34528321]
[1756804264722,0.56685709,110750.0,110740.0,0.34731321]
[1756804264940,0.38432019,110750.0,110740.0,0.4392292]
[1756804265146,0.56490709,110750.0,110740.0,0.4392292]
[1756804265496,0.38532019,110750.0,110740.0,0.4392292]
[1756804267378,0.03240748,110750.0,110740.0,0.4392292]
[1756804267577,0.03240748,110750.0,110740.0,0.79214191]
[1756804267780,0.03240748,110750.0,110740.0,0.4392292]
[1756804268778,0.38532019,110750.0,110740.0,0.4392292]
[1756804268935,0.56590709,110750.0,110740.0,0.4392292]
[1756804269131,0.38532019,110750.0,110740.0,0.4392292]
[1756804269914,0.38532019,110750.0,110740.0,0.2877892]
[1756804270154,0.56785709,110750.0,110740.0,0.4392292]
[1756804270323,0.56785709,110750.0,110740.0,0.2877892]
[1756804270539,0.56785709,110750.0,110740.0,0.4392292]
[1756804270830,0.56785709,110750.0,110740.0,0.4359692]
[1756804271042,0.56785709,110750.0,110740.0,0.4389092]
[1756804271252,0.03240748,110750.0,110740.0,0.4389092]
[1756804271656,0.21299438,110750.0,110740.0,0.4389092]
[1756804273322,0.56590709,110750.0,110740.0,0.4389092]
[1756804273530,0.38532019,110750.0,110740.0,0.4389092]
[1756804274348,0.56590709,110750.0,110740.0,0.4389092]
[1756804275202,0.21299438,110750.0,110740.0,0.4389092]
[1756804276569,0.03240748,110750.0,110740.0,0.4389092]
[1756804277092,0.21299438,110750.0,110740.0,0.4389092]
[1756804280485,0.03240748,110750.0,110740.0,0.4389092]
[1756804280745,0.38532019,110750.0,110740.0,0.4389092]
[1756804281790,0.38332019,110750.0,110740.0,0.4389092]
[1756804281994,0.38232019,110750.0,110740.0,0.4389092]
[1756804282580,0.38332019,110750.0,110740.0,0.4389092]
[1756804283046,0.03040748,110750.0,110740.0,0.4389092]
[1756804283248,0.01626911,110750.0,110740.0,0.4389092]
[1756804284086,0.01526911,110750.0,110740.0,0.4389092]
[1756804284295,0.00067021,110750.0,110740.0,0.86126191]
[1756804284497,0.00067021,110750.0,110740.0,0.88518191]
[1756804284702,0.00167021,110750.0,110740.0,0.88518191]
[1756804285538,0.00167021,110750.0,110740.0,0.5322692]
[1756804285721,0.00167021,110750.0,110740.0,0.88518191]
[1756804286318,0.01580533,110750.0,110740.0,0.88518191]
[1756804286749,0.01580533,110750.0,110740.0,1.23809462]
[1756804287044,0.01580533,110750.0,110740.0,0.88518191]
[1756804287663,0.01480533,110750.0,110740.0,0.88518191]
[1756804288383,0.01480533,110750.0,110740.0,1.23809462]
[1756804288906,0.01480533,110750.0,110740.0,1.23909462]
[1756804289469,0.01480533,110750.0,110740.0,1.27364711]
[1756804290286,0.01480533,110750.0,110740.0,1.28845244]
[1756804290483,0.01480533,110750.0,110740.0,1.62845244]
[1756804290705,0.00067021,110750.0,110740.0,1.62845244]
[1756804291315,0.00067021,110750.0,110740.0,1.62837244]
[1756804293327,0.00067021,110750.0,110740.0,1.89167244]
[1756804293474,0.00067021,110750.0,110740.0,2.00601729]
[1756804294484,0.00067021,110750.0,110740.0,2.40601729]
[1756804295401,0.00067021,110750.0,110740.0,2.34167244]
[1756804305923,0.00067021,110750.0,110740.0,2.34163244]
[1756804308625,0.00067021,110750.0,110740.0,2.29163244]
[1756804308784,0.00067021,110750.0,110740.0,2.34163244]
[1756804309127,0.00067021,110750.0,110740.0,2.40597729]
[1756804310298,0.00067021,110750.0,110740.0,2.35597729]
[1756804310512,0.00067021,110750.0,110740.0,2.40597729]
[1756804311489,0.00067021,110750.0,110740.0,2.35597729]
[1756804311739,0.00067021,110750.0,110740.0,2.40597729]